Cogmind - Beta 16.1 @@@ ROGUE MODE // 2026.04.02 @ 13:27:34 Player: Ammie Result: Destroyed by G-34 Mercenary with Small Laser Performance ------------- Evolutions (0) 0 Regions Visited (2) 400 Robots Destroyed (9) 45 Value Destroyed (263) 263 Prototype IDs (2) 40 Alien Tech Used (0) 0 Bonus (0) 0 TOTAL SCORE: 748 Bonus ------- None Cogmind --------- Core Integrity 0/250 Matter 72/300 Energy 160/160 System Corruption 2% Temperature Cool (18) Movement Walking (120) Location -10/Mines Parts ------- > --- POWER (1) -------- Light Nuclear Core > --- PROPULSION (2) --- Aluminum Leg Aluminum Leg > --- UTILITY (2) ------ Small Storage Unit Small Storage Unit > --- WEAPON (2) ------- Particle Gun Assault Rifle > --- INVENTORY (8) ---- Ion Engine Light Nuclear Core Aluminum Leg Heat Sink Assault Rifle Light Assault Rifle Grenade Launcher Peak State ------------ > --- POWER ------------ Light Nuclear Core > --- PROPULSION ------- Aluminum Leg Aluminum Leg > --- UTILITY ---------- Small Storage Unit Small Storage Unit > --- WEAPON ----------- Particle Gun Assault Rifle > --- INVENTORY -------- Ion Engine Light Ion Engine Light Nuclear Core Aluminum Leg Heat Sink Assault Rifle Light Assault Rifle Grenade Launcher [Rating: 11] Favorites ----------- Power Light Nuclear Core Engine Ion Engine Power Core Light Nuclear Core Propulsion Aluminum Leg Leg Aluminum Leg Wheel Wheel Utility Small Storage Unit Storage Small Storage Unit Weapon Assault Rifle Energy Gun Particle Gun Ballistic Gun Assault Rifle Build | -11 -10 -10 ------- Run | Yrd Mat Min Slots Evolved . | . . . Power . | . . . Propulsion . | . . . Utility . | . . . Weapon . | . . . Parts Attached 12 | 6 6 . Power 2 | 1 1 . Engine 1 | 1 . . Core 1 | . 1 . Reactor . | . . . Propulsion 5 | 2 3 . Treads . | . . . Leg 3 | . 3 . Wheel 2 | 2 . . Hover . | . . . Flight . | . . . Utility 2 | 1 1 . Device . | . . . Storage 2 | 1 1 . Processor . | . . . Hackware . | . . . Protection . | . . . Artifact . | . . . Weapon 3 | 2 1 . Energy Gun 1 | . 1 . Energy Cannon . | . . . Ballistic Gun 2 | 2 . . Ballistic Cannon . | . . . Launcher . | . . . Special Weapon . | . . . Impact Weapon . | . . . Slashing Weapon . | . . . Piercing Weapon . | . . . Special Melee Weapon . | . . . Unidentified Prototypes . | . . . Parts Lost 2 | . 2 . Power . | . . . Propulsion 2 | . 2 . Utility . | . . . Weapon . | . . . Highest Loss Streak 2 | . 2 . To Critical Strikes . | . . . Average Backups 5 | 2 5 7 Power 1 | . 1 2 Propulsion 1 | 1 1 1 Utility . | . . 1 Weapon 2 | . 2 3 Tool/Special . | . . . Unused Backups 5 | . 1 4 Power 2 | . 1 1 Propulsion . | . . . Utility 1 | . . 1 Weapon 2 | . . 2 Tool/Special . | . . . Average Slot Usage (%) 94 | . 93 100 Engine 4 | . 5 . Core 8 | . 7 14 Leg 19 | . 16 28 Wheel 8 | . 10 . Storage 24 | . 23 28 Energy Gun 9 | . 8 14 Ballistic Gun 18 | . 19 14 Peak Build Rating 11 | 6 11 10 Average Rating 8 | 4 8 10 On Entrance 5 | . 6 10 Avg Prop Armor Cover (%) . | . . . Naked Turns . | . . . Heaviest Build 20 | 14 20 20 Greatest Support 20 | 20 20 20 Greatest Overweight (x) . | . . . Average Overweight (x) . | . . . Largest Inventory Capacity 8 | 8 8 8 Average Capacity 7 | 5 8 8 Most Carried 8 | 4 8 7 Average Carried 5 | 2 5 7 Final Capacity 8 | 8 8 8 Final Carried 7 | 4 7 7 Class Distribution -------------------- 100% | Mutant Dominant Class ---------------- Mutant | -10/Materials Mutant | -10/Mines Resources | -11 -10 -10 ----------- Run | Yrd Mat Min Matter Collected 436 | 107 329 . Remotely . | . . . Salvage Created 363 | . 363 . Parts 20 | . 20 . Haulers Intercepted . | . . . Recyclers Shooed . | . . . Parts Field Recycled . | . . . Retrieved Matter . | . . . Parts Self-Destructed . | . . . Prevented . | . . . Parts Restored . | . . . Kills | -11 -10 -10 ------- Run | Yrd Mat Min Combat Hostiles Destroyed 6 | . 6 . Guns 6 | . 6 . Classes Destroyed 3 | . 3 . Worker 1 | . 1 . Watcher 2 | . 2 . Grunt 6 | . 6 . Best Kill Streak 3 | . 3 . Combat Bots Only 2 | . 2 . Max Kills in Single Turn 1 | . 1 . Gunslinging . | . . . Exploded . | . . . Melee . | . . . Uniques/NPCs Destroyed . | . . . Combat | -11 -10 -10 -------- Run | Yrd Mat Min Hostile Shots Fired 84 | . 65 19 Missed 21 | . 16 5 Hits 63 | . 49 14 Projectile 63 | . 49 14 Critical Strikes 1 | . . 1 Damage Taken 828 | . 638 190 Core 252 | . 180 72 Absorbed by Shields . | . . . Regen/Repaired (Parts) 56 | . 56 . Core Remaining (%) 100 | 100 . . Volleys Fired 72 | . 62 10 Largest 2 | . 2 1 Hottest 85 | . 85 20 Shots Fired 120 | . 110 10 Gun 120 | . 110 10 Cannon . | . . . Launcher . | . . . Special . | . . . Kinetic 108 | . 98 10 Thermal 12 | . 12 . Explosive . | . . . Electromagnetic . | . . . Robot Hit Streak 5 | . 4 5 Robot Miss Streak 5 | . 5 2 Penetration Max . | . . . Secondary Targets 1 | . 1 . Max Gunslinging Chain 1 | . 1 . Shots Hit Robots 59 | . 53 6 Core Hits 20 | . 20 . Critical Kills . | . . . Critical Parts Destroyed 1 | . 1 . Critical Strikes 1 | . 1 . Destroy 1 | . 1 . Melee Attacks . | . . . Impact . | . . . Slashing . | . . . Piercing . | . . . Sneak Attacks . | . . . Combat Hostiles . | . . . Follow-up Attacks . | . . . Damage Inflicted 803 | . 726 77 Guns 792 | . 726 66 Cannons . | . . . Explosions . | . . . Melee . | . . . Ramming 11 | . . 11 Kinetic 730 | . 664 66 Thermal 62 | . 62 . Explosive . | . . . Electromagnetic . | . . . Impact . | . . . Slashing . | . . . Piercing . | . . . Highest Corruption 2 | . 2 2 Average Corruption 2 | . 2 2 Corruption Purged . | . . . Corruption Blocked . | . . . Effects 6 | . 5 1 Message Errors 1 | . 1 . Matter Fused 3 | . 2 1 Heat Flow Errors 1 | . 1 . Data Loss (major) 1 | . 1 . Overload Shots . | . . . Overflow Damage . | . . . Projectiles . | . . . Explosions . | . . . Melee . | . . . Knockbacks 1 | . . 1 Impact 1 | . . 1 Kinetic . | . . . Secondary . | . . . Self-Inflicted Damage . | . . . Shots . | . . . Rammed . | . . . Targets Rammed 1 | . . 1 Kicked 1 | . . 1 Crushed . | . . . Highest Temperature 325 | . 325 19 Average Temperature 126 | . 135 9 Received Heat Transfer 477 | . 354 123 Effects 1 | . 1 . Interference 1 | . 1 . Siege Activations . | . . . Martial Activations . | . . . Shielding Activations . | . . . Robots Disrupted . | . . . Combat Hostiles . | . . . Robots Corrupted . | . . . Combat Hostiles . | . . . Parts Fried . | . . . Impact Corruptions . | . . . Robots Melted . | . . . Combat Hostiles . | . . . Parts Melted 1 | . 1 . Heat Transferred 148 | . 148 . Parts Sabotaged . | . . . Parts Stolen . | . . . Parts Stripped . | . . . Power Chain Reactions . | . . . Alert | -11 -10 -10 ------- Run | Yrd Mat Min Maximum Alert Level . | . . . Low Security (%) 100 | 100 100 100 Level 1 . | . . . Level 2 . | . . . Level 3 . | . . . Level 4 . | . . . Level 5 . | . . . High Security . | . . . Max Security . | . . . Peak Influence 55 | . 55 . Initial . | . . . Average 8 | . 11 . Influence Increases 192 | . 192 . Destroy 0b10 Robot/C 120 | . 120 . Destroy 0b10 Robot/NC 20 | . 20 . Destroy Leader 34 | . 34 . Successful Hack 17 | . 17 . Destroy Structure 1 | . 1 . Influence Decreases 192 | . 192 . Time Decay 172 | . 172 . Lost Part 20 | . 20 . Squads Dispatched 1 | . 1 . Investigation . | . . . Extermination . | . . . Reinforcement 1 | . 1 . Assault . | . . . Garrison . | . . . Intercept . | . . . Searches Triggered . | . . . Construction Impeded . | . . . Haulers Reinforced . | . . . Active Scanning Responses . | . . . Cargo Convoy Interrupts . | . . . Stealth | -11 -10 -10 --------- Run | Yrd Mat Min Distress Signals . | . . . Communications Jammed . | . . . Distress Signals . | . . . Times Spotted 18 | . 16 2 Peak Tracking Total 3 | . 3 2 Tactical Retreats . | . . . Traps | -11 -10 -10 ------- Run | Yrd Mat Min Traps Triggered 1 | . 1 . Indirectly . | . . . Trap Hack Attempts . | . . . Triggered . | . . . Disarmed . | . . . Reprogrammed . | . . . Reused . | . . . Traps Extracted . | . . . Installed . | . . . Triggered . | . . . Machines | -11 -10 -10 ---------- Run | Yrd Mat Min Machines Disabled . | . . . Max in Single Turn . | . . . Machines Repaired . | . . . Machines Dismantled . | . . . Machines Sabotaged . | . . . Overloaded Fab Kills . | . . . Hacking | -11 -10 -10 --------- Run | Yrd Mat Min Machines Accessed 5 | . 5 . Terminals 4 | . 4 . Fabricators . | . . . Repair Stations 1 | . 1 . Recycling Units . | . . . Scanalyzers . | . . . Garrison Access . | . . . Total Hacks 9 | . 9 . Successful 7 | . 7 . Failed 2 | . 2 . Catastrophic . | . . . Database Lockouts . | . . . Manual . | . . . Terminals 5 | . 5 . Fabricators . | . . . Repair Stations 4 | . 4 . Recycling Units . | . . . Scanalyzers . | . . . Garrison Access . | . . . Terminal Hacks 3 | . 3 . Robot Analysis 1 | . 1 . Prototype ID Bank 1 | . 1 . Locate Traps 1 | . 1 . Fabricator Hacks . | . . . Repair Station Hacks 4 | . 4 . Scan Component 2 | . 2 . Repair 2 | . 2 . Recycling Unit Hacks . | . . . Scanalyzer . | . . . Garrison Access Hacks . | . . . Unauthorized Hacks . | . . . Terminals . | . . . Fabricators . | . . . Repair Stations . | . . . Recycling Units . | . . . Scanalyzers . | . . . Garrison Access . | . . . Data Cores Recovered . | . . . Used . | . . . Hacking Detections 1 | . 1 . Full Trace Events . | . . . Feedback Events . | . . . Feedback Blocked . | . . . Robot Schematics Acquired . | . . . Robots Built . | . . . Authchips . | . . . Time . | . . . Total Robot Build Rating . | . . . Part Schematics Acquired . | . . . Parts Built . | . . . Authchips . | . . . Time . | . . . Total Part Build Rating . | . . . Part Studies Acquired . | . . . Parts Repaired 2 | . 2 . Time 76 | . 76 . Parts Recycled . | . . . Recycled Matter . | . . . Retrieved Matter . | . . . Retrieved Components . | . . . Parts Scanalyzed . | . . . Part Schematics Acquired . | . . . Parts Damaged . | . . . Bothacking | -11 -10 -10 ------------ Run | Yrd Mat Min Used RIF Installer . | . . . Robots Hacked . | . . . Non-combat . | . . . Combat . | . . . Robot Hacks Applied . | . . . Relay Couplers Released . | . . . Fabnet Peak Effective % . | . . . Robots Rewired . | . . . Allies Hacked . | . . . Hacks Repelled . | . . . Allies | -11 -10 -10 -------- Run | Yrd Mat Min Total Allies . | . . . Largest Group . | . . . Highest-Rated Group . | . . . Highest-Rated Ally . | . . . Total Orders . | . . . Ally Attacks . | . . . Total Damage . | . . . Kills . | . . . Allies Corrupted . | . . . Allies Melted . | . . . Intel | -11 -10 -10 ------- Run | Yrd Mat Min Active Infowar (turns) . | . . . Robot Analysis Total 1 | . 1 . Derelict Logs Recovered . | . . . Drone Launches . | . . . Drone Recoveries . | . . . Exploration | -11 -10 -10 ------------- Run | Yrd Mat Min Turns Passed 823 | 48 625 150 Spaces Moved 495 | 45 359 91 Core 1 | 1 . . Treads . | . . . Legs 290 | . 199 91 Wheels 204 | 44 160 . Hover . | . . . Flight . | . . . Fastest Speed 50 | 50 80 120 Average Speed 103 | 79 102 120 Slowest Speed 120 | 80 120 120 Overloaded Moves . | . . . Propulsion Burnouts . | . . . Robots Hopped . | . . . Potential Cave-ins . | . . . Cave-ins Triggered . | . . . Exploration Rate (%) 29 | 3 60 26 Regions Visited 2 Branch Regions 1 Pre-discovered Areas . | . . . Known Exits Taken . | . . . Unknown Exits Taken 2 | 1 1 . Scrap Searched . | . . . Spaces Dug . | . . . Terrain Destroyed . | . . . Melee . | . . . Projectile . | . . . AOE . | . . . Terrain Rammed . | . . . Walls Destroyed . | . . . Machines Disabled . | . . . Actions | -11 -10 -10 --------- Run | Yrd Mat Min Total 681 | 54 505 122 Wait 92 | . 72 20 Move 493 | 44 358 91 Hop . | . . . Pick Up 9 | 4 5 . Fast Attach 8 | 6 2 . Attach 2 | . 2 . Detach . | . . . Swap 3 | . 3 . Drop 1 | . 1 . Fire 72 | . 62 10 Melee . | . . . Ram . | . . . Kick 1 | . . 1 Crush . | . . . Escape Stasis . | . . . Rewire . | . . . Trap . | . . . Miscellaneous . | . . . Route ------- -11/Scrapyard -10/Materials -10/Mines History --------- Turn | Location | Event 10 | -11/Scrapyard | Discovered new exit (range 16) 49 | -11/Scrapyard | Entered Materials 66 | -10/Materials | Discovered new exit (range 15) 330 | -10/Materials | Build established: Mutant 397 | -10/Materials | Core integrity fell below 50% 611 | -10/Materials | Repaired Lgt. Nuclear Core 651 | -10/Materials | Repaired Lgt. Nuclear Core 674 | -10/Materials | Entered Mines 814 | -10/Mines | Core integrity fell below 20% 824 | -10/Mines | Destroyed by G-34 Mercenary with Small Laser Last Messages --------------- Time: 38 >>Repair Repairing Lgt. Nuclear Core... ETC: 38 00631_ Dropped Lgt. Ion Engine. 00635_ System corrupted: Substantial component data lost. 00643_ K-01 Serf cleans the Material Compactor. 00651_ Repair station completes Lgt. Nuclear Core repairs. 00651_ K-01 Serf cleans the Material Compactor. 00651_ Acquired Lgt. Nuclear Core. 00655_ K-01 Serf cleans the Material Compactor. 00657_ 9ARLTORHG6UUITLPDAD2UJI,F LOCATION=UNKNOWN GOAL=ESCAPE 00732_ Kicked T-07 Excavator. 00732_ T-07 Excavator knocked back. 00738_ System corrupted: Matter fused (-7). 00758_ K-01 Serf collects debris. 00785_ K-01 Serf cleans the Matter Pump. 00821_ Critical hit (Burn: +37). Map ----- +----------------------------------------------------+ | ???????????????????????????????????????????????? | | ???????????????????????????????????????????????? | | ???????????????????????????????????????????????? | | ???????????????????????????????????????????????? | | ?????????????????????????? ????????????????????? | | ?????????????????????????? ????????????????????? | | ?????????????????????????? #???????????????????? | | ?????????????????????????? ???????????????????? | | ?????????????????????????? ???????????????????? | | ?????????????????????????? ##?????????????????? | | ??????????????????????????$ #?????????????????? | | ?????????????????????????? #?????????????????? | | ??????????????????????????# ?????????????????? | | ??????????????????????????# #?????????????????? | | ?????????????????????????? #?????????????????? | | ??????????????????????????# #?????????????????? | | ??????????????????????????# #?????????????????? | | ??????????????????????????# #?????????????????? | | ??????????????????????????# #?????????????????? | | ????????????????????????### g#?????????????????? | | ???????????????????????## g #?????????????????? | | ???????????????????????# r#?????????????????? | | ?????????????# ???????##k #?????????????????? | | ?????????????# ###?### ##????????????????? | | ?????????????# ## ##???????????????? | | ????????????????# @ #???????????????? | | ????????????????# #???????????????? | | ????????????????# """ ##???????????????? | | ????????????????# """ ##????????????????? | | ????????????????# """ #?????????????????? | | ????????????????# #?????????????????? | | ???????????????# #?????????????????? | | ???????????? ## ## k##????????????????? | | ???????????? #?###?## r##???????????????? | | ???????????? #??????## ##??????????????? | | ????????????# #??????## ##?????????????? | | ??????????????#????????# ##?????#??????? | | ???????????????????????# ##### #??????? | | ???????????????????????## #??????? | | ????????????????????????# #??????? | | ???????????????????????# ## ## #####??????? | | ???????????????????????# ######## #??????????? | | ???????????????????????# #??????# #??????????? | | ??????????????????????# #??????# #??????????? | | ?????????????????????# #??????# ############ | | ?????????????????????# #??????# | | ?????????????????????## ##??????############## | | ??????????????????????####?????????????????????? | | ???????????????????????????????????????????????? | | ???????????????????????????????????????????????? | +----------------------------------------------------+ Best States ------------- Heat Dissipation 25 Energy Generation 14 Energy Capacity 250 Matter Stores 167 Matter Capacity 300 Sight Range 16 Terrain Scan Density 10 Evasion (%) 55 Item Schematics ----------------- None Robot Schematics ------------------ None Fabricated ------------ Nothing Repaired ---------- Lgt. Nuclear Core | 22% | -10/Materials Lgt. Nuclear Core | 66% | -10/Materials Studied --------- None Alien Tech Used ----------------- None Achievements -------------- None Challenges ------------ None Game ------ Seed BlanketHardcellSegregator Manual? 0 Play Time 00:09:02 Cumulative 30.4 hours Start 2026.04.02 @ 13:18:22 End 2026.04.02 @ 13:27:34 Sessions 1 Manual Loads 0 Difficulty Rogue Special Mode None Game No. 53 Rogue 53 Adventurer 0 Explorer 0 Win Type - Total 0 Types 0/0/0/0/0/0/0/0/0/0 Lore% 8 Gallery% 21 Achievement% 18 Wizard Run 0 Options --------- Layout 0 ASCII 0 Keyboard 0 Movement Mouse Keybinds 0 Fullscreen 1 Font 24/Smallcaps Map View 38x25 Zoom Use 98% Tactical HUD 1 Map Filters NONE Filters NONE Steam 1 RUN: f73e3b69-908f-43c4-830d-18a22b743ee9